[Event "Frauenbundesliga 2024-25"]
[Site "Germany"]
[Date "2025.02.16"]
[Round "6.1"]
[White "Wagner, Dinara"]
[Black "Peglau, Charis"]
[Result "1-0"]
[Annotator "ChessBase"]
[ECO "E34"]
[WhiteElo "2435"]
[BlackElo "2203"]
[PlyCount "117"]
[EventDate "2024.11.06"]
[EventType "team-tourn"]
[EventCountry "GER"]
[SourceTitle "playchess.com"]
[Source "ChessBase"]
[SourceQuality "1"]
[TimeControl "40/5400+30:1800+30"]

1. d4 {[%emt 0:00:03]} d5 {[%emt 0:00:12]} 2. c4 {[%emt 0:00:06]} e6 {[%emt 0:00:05]} 3. Nf3 {[%emt 0:00:04]} Nf6 {[%emt 0:00:07]} 4. Nc3 {[%emt 0:00:03]} Bb4 {[%emt 0:01:19]} 5. e3 {[%emt 0:00:11]} O-O {[%emt 0:00:28]} 6. Qc2 {[%emt 0:00:09]} b6 {[%emt 0:01:54]} 7. cxd5 {[%emt 0:09:28]} exd5 {[%emt 1:29:55]} 8. Bd2 {[%emt 0:00:09]} c5 {[%emt 0:00:00]} 9. dxc5 {[%emt 0:16:57]} bxc5 {[%emt 0:00:00]} 10. a3 {[%emt 0:00:15]} Ba5 {[%emt 0:00:00]} 11. Bd3 {[%emt 0:03:47]} Bb7 {[%emt 0:00:00]} 12. Ne2 {[%emt 0:21:30]} Bxd2+ {[%emt 0:00:00]} 13. Nxd2 {[%emt 0:00:48]} Nbd7 {[%emt 0:00:00]} 14. O-O {[%emt 0:02:13]} Ne5 {[%emt 0:00:00]} 15. Rfd1 {[%emt 0:04:41]} Nxd3 {[%emt 0:00:00]} 16. Qxd3 {[%emt 0:00:05]} Qb6 {[%emt 0:00:00]} 17. Nf4 {[%emt 0:03:46]} Rfd8 {[%emt 0:00:00]} 18. Nf3 {[%emt 0:17:26]} Ne4 {[%emt 0:00:00]} 19. Nd2 {[%emt 0:04:29]} Nf6 {[%emt 0:00:00]} 20. Rac1 {[%emt 0:00:07]} Rac8 {[%emt 0:00:00]} 21. Qc2 {[%emt 0:02:04]} Qd6 {[%emt 0:00:00]} 22. Nb3 {[%emt 0:07:18]} c4 {[%emt 0:00:00]} 23. Nd4 {[%emt 0:00:33]} Ne4 {[%emt 0:00:00]} 24. Nb5 {[%emt 0:01:19]} Qc6 {[%emt 0:00:54]} 25. Nxa7 {[%emt 0:00:33]} Qc5 {[%emt 0:00:17]} 26. Nxc8 {[%emt 0:00:03]} Rxc8 {[%emt 0:00:15]} 27. Ne2 {[%emt 0:02:12]} Rc6 {[%emt 0:02:56]} 28. Nc3 {[%emt 0:00:45]} Nf6 {[%emt 0:01:39]} 29. Rd4 {[%emt 0:00:26]} Re6 {[%emt 0:01:58]} 30. Rcd1 {[%emt 0:00:52]} g6 {[%emt 0:00:29]} 31. h3 {[%emt 0:00:55]} Kg7 {[%emt 0:00:17]} 32. Qe2 {[%emt 0:00:53]} Re8 {[%emt 0:01:03]} 33. Qf3 {[%emt 0:00:12]} Re5 {[%emt 0:00:54]} 34. Qg3 {[%emt 0:00:37]} Re8 {[%emt 0:00:26]} 35. Rh4 {[%emt 0:01:06]} h5 {[%emt 0:00:56]} 36. Qf4 {[%emt 0:00:47]} Qb6 {[%emt 0:00:28]} 37. Qd4 {[%emt 0:00:25]} Qe6 {[%emt 0:01:02]} 38. Rf4 {[%emt 0:01:08]} g5 {[%emt 0:01:11]} 39. Rf3 {[%emt 0:00:26]} Kg6 {[%emt 0:00:17]} 40. h4 {[%emt 0:00:58]} g4 {[%emt 0:00:48]} 41. Rxf6+ {[%emt 0:30:25]} Qxf6 {[%emt 0:30:02]} 42. Qxf6+ {[%emt 0:00:04]} Kxf6 {[%emt 0:00:05]} 43. Nxd5+ {[%emt 0:00:04]} Bxd5 {[%emt 0:00:00]} 44. Rxd5 {[%emt 0:00:00]} Rb8 {[%emt 0:00:00]} 45. Rc5 {[%emt 0:00:00]} Rxb2 {[%emt 0:00:00]} 46. Rxc4 {[%emt 0:00:00]} Ra2 {[%emt 0:00:00]} 47. a4 {[%emt 0:00:00]} Kg6 {[%emt 0:00:00]} 48. Rf4 {[%emt 0:00:00]} f6 {[%emt 0:00:00]} 49. Kh2 {[%emt 0:00:00]} Kg7 {[%emt 0:00:00]} 50. Kg3 {[%emt 0:00:00]} Ra3 {[%emt 0:00:00]} 51. Rf5 {[%emt 0:00:00]} Kg6 {[%emt 0:00:00]} 52. Ra5 {[%emt 0:00:00]} Kh6 {[%emt 0:00:00]} 53. Ra8 {[%emt 0:00:00]} Kg6 {[%emt 0:00:00]} 54. a5 {[%emt 0:00:00]} Kg7 {[%emt 0:00:00]} 55. a6 {[%emt 0:00:00]} Ra4 {[%emt 0:00:00]} 56. f3 {[%emt 0:00:00]} f5 {[%emt 0:00:00]} 57. a7 {[%emt 0:00:00]} Kh7 {[%emt 0:00:00]} 58. e4 {[%emt 0:00:00]} fxe4 {[%emt 0:00:00]} 59. fxe4 {[%emt 0:00:00]} 1-0

[Event "Frauenbundesliga 2024-25"]
[Site "Germany"]
[Date "2025.02.16"]
[Round "6.1"]
[White "Klek, Hanna Marie"]
[Black "Tsolakidou, Stavroula"]
[Result "0-1"]
[Annotator "ChessBase"]
[ECO "C24"]
[WhiteElo "2289"]
[BlackElo "2447"]
[PlyCount "88"]
[EventDate "2024.11.06"]
[EventType "team-tourn"]
[EventCountry "GER"]
[SourceTitle "playchess.com"]
[Source "ChessBase"]
[SourceQuality "1"]
[TimeControl "40/5400+30:1800+30"]

1. e4 {[%emt 0:00:03]} e5 {[%emt 0:00:19]} 2. Nf3 {[%emt 0:00:07]} Nc6 {[%emt 0:00:08]} 3. Bc4 {[%emt 0:00:22]} Nf6 {[%emt 0:00:23]} 4. d3 {[%emt 0:00:06]} d5 {[%emt 0:00:45]} 5. exd5 {[%emt 0:00:42]} Nxd5 {[%emt 0:00:06]} 6. O-O {[%emt 0:01:14]} Be7 {[%emt 0:01:10]} 7. Re1 {[%emt 0:00:23]} f6 {[%emt 0:00:36]} 8. d4 {[%emt 0:08:13]} Nb6 {[%emt 0:00:51]} 9. Bb5 {[%emt 0:01:22]} O-O {[%emt 0:00:39]} 10. dxe5 {[%emt 0:12:15]} Qxd1 {[%emt 0:00:59]} 11. Rxd1 {[%emt 0:00:09]} Bg4 {[%emt 0:16:06]} 12. exf6 {[%emt 0:11:04]} Bxf6 {[%emt 0:06:07]} 13. Nc3 {[%emt 0:07:27]} Bxf3 {[%emt 0:06:34]} 14. gxf3 {[%emt 0:00:11]} Nd4 {[%emt 0:07:41]} 15. Bd3 {[%emt 0:03:48]} Nxf3+ {[%emt 0:11:54]} 16. Kg2 {[%emt 0:02:01]} Ne5 {[%emt 0:00:30]} 17. Be4 {[%emt 0:05:35]} c6 {[%emt 0:00:30]} 18. a4 {[%emt 0:03:28]} a5 {[%emt 0:07:51]} 19. Ne2 {[%emt 0:01:45]} Rae8 {[%emt 0:02:18]} 20. Ng3 {[%emt 0:00:54]} Nec4 {[%emt 0:05:11]} 21. c3 {[%emt 0:04:02]} Be5 {[%emt 0:02:23]} 22. Bd3 {[%emt 0:03:05]} Bc7 {[%emt 0:14:48]} 23. b3 {[%emt 0:04:04]} Ne5 {[%emt 0:00:04]} 24. Ba3 {[%emt 0:02:04]} Rf7 {[%emt 0:01:37]} 25. c4 {[%emt 0:01:48]} Nbd7 {[%emt 0:01:46]} 26. Be2 {[%emt 0:04:35]} Ng6 {[%emt 0:00:19]} 27. Ra2 {[%emt 0:01:25]} Nf4+ {[%emt 0:00:37]} 28. Kf1 {[%emt 0:00:16]} Bb6 {[%emt 0:04:29]} 29. Bg4 {[%emt 0:02:57]} Ne5 {[%emt 0:00:54]} 30. Bf5 {[%emt 0:03:38]} g6 {[%emt 0:00:19]} 31. c5 {[%emt 0:00:27]} Bc7 {[%emt 0:00:59]} 32. Be4 {[%emt 0:02:34]} Ng4 {[%emt 0:00:12]} 33. Rdd2 {[%emt 0:02:31]} Nxh2+ {[%emt 0:03:04]} 34. Kg1 {[%emt 0:00:06]} Ng4 {[%emt 0:00:22]} 35. f3 {[%emt 0:01:19]} Ne3 {[%emt 0:00:44]} 36. Kf2 {[%emt 0:01:25]} Ned5 {[%emt 0:02:08]} 37. Bb2 {[%emt 0:01:50]} Nh3+ {[%emt 0:01:18]} 38. Kg2 {[%emt 0:00:05]} Ndf4+ {[%emt 0:00:03]} 39. Kh1 {[%emt 0:01:51]} Ne6 {[%emt 0:00:53]} 40. Rg2 {[%emt 0:04:07]} Nxc5 {[%emt 0:01:15]} 41. Bd4 {[%emt 0:33:37]} Nxb3 {[%emt 0:09:50]} 42. Be3 {[%emt 0:00:00]} Bf4 {[%emt 0:02:27]} 43. Bb6 {[%emt 0:00:00]} Rd7 {[%emt 0:02:06]} 44. Rab2 {[%emt 0:00:00]} Nd2 {[%emt 0:02:20]} 0-1

[Event "Frauenbundesliga 2024-25"]
[Site "Germany"]
[Date "2025.02.16"]
[Round "6.2"]
[White "Sliwicka, Alicja"]
[Black "Doluhanova, Evgeniya"]
[Result "1/2-1/2"]
[Annotator "ChessBase"]
[ECO "C50"]
[WhiteElo "2352"]
[BlackElo "2272"]
[PlyCount "83"]
[EventDate "2024.11.06"]
[EventType "team-tourn"]
[EventCountry "GER"]
[SourceTitle "playchess.com"]
[Source "ChessBase"]
[SourceQuality "1"]
[TimeControl "40/5400+30:1800+30"]

1. e4 {[%emt 0:00:03]} e5 {[%emt 0:00:04]} 2. Nf3 {[%emt 0:00:06]} Nc6 {[%emt 0:00:02]} 3. Bc4 {[%emt 0:00:23]} Bc5 {[%emt 0:00:11]} 4. d3 {[%emt 0:00:13]} Nf6 {[%emt 0:00:06]} 5. Bg5 {[%emt 0:03:01]} Be7 {[%emt 0:02:23]} 6. Nc3 {[%emt 0:00:28]} d6 {[%emt 0:00:39]} 7. a4 {[%emt 0:05:01]} h6 {[%emt 0:01:02]} 8. Bxf6 {[%emt 0:13:17]} Bxf6 {[%emt 0:00:07]} 9. Nd5 {[%emt 0:00:42]} Be6 {[%emt 0:03:58]} 10. a5 {[%emt 0:02:32]} a6 {[%emt 0:01:05]} 11. O-O {[%emt 0:03:26]} g5 {[%emt 0:05:19]} 12. Nd2 {[%emt 0:06:09]} Bg7 {[%emt 0:01:38]} 13. Qh5 {[%emt 0:01:51]} O-O {[%emt 0:17:49]} 14. Nf3 {[%emt 0:05:47]} Ne7 {[%emt 0:06:42]} 15. Ne3 {[%emt 0:02:15]} d5 {[%emt 0:14:42]} 16. exd5 {[%emt 0:02:43]} Nxd5 {[%emt 0:01:00]} 17. Bxd5 {[%emt 0:05:05]} Bxd5 {[%emt 0:00:07]} 18. h4 {[%emt 0:00:52]} f6 {[%emt 0:07:04]} 19. hxg5 {[%emt 0:06:55]} hxg5 {[%emt 0:03:07]} 20. Nxd5 {[%emt 0:01:23]} Qxd5 {[%emt 0:00:06]} 21. Ra4 {[%emt 0:00:47]} b5 {[%emt 0:05:52]} 22. Rg4 {[%emt 0:03:24]} Qf7 {[%emt 0:02:24]} 23. Qh3 {[%emt 0:01:54]} Rad8 {[%emt 0:04:27]} 24. b3 {[%emt 0:03:30]} Rd6 {[%emt 0:09:32]} 25. Nd2 {[%emt 0:00:43]} Rfd8 {[%emt 0:00:32]} 26. Qf3 {[%emt 0:01:52]} Qd7 {[%emt 0:03:03]} 27. Rg3 {[%emt 0:00:56]} Rc6 {[%emt 0:02:53]} 28. Ne4 {[%emt 0:01:37]} g4 {[%emt 0:02:23]} 29. Rxg4 {[%emt 0:05:56]} f5 {[%emt 0:00:19]} 30. Rxg7+ {[%emt 0:00:06]} Kxg7 {[%emt 0:00:18]} 31. Qg3+ {[%emt 0:00:36]} Kf8 {[%emt 0:02:00]} 32. Qxe5 {[%emt 0:10:36]} fxe4 {[%emt 0:00:26]} 33. Qh8+ {[%emt 0:00:03]} Kf7 {[%emt 0:00:30]} 34. Qh7+ {[%emt 0:00:05]} Kf6 {[%emt 0:02:09]} 35. Qh6+ {[%emt 0:00:07]} Kf7 {[%emt 0:01:39]} 36. Qh7+ {[%emt 0:00:03]} Kf8 {[%emt 0:01:37]} 37. Qh8+ {[%emt 0:00:07]} Ke7 {[%emt 0:00:22]} 38. Qg7+ {[%emt 0:00:20]} Ke6 {[%emt 0:01:15]} 39. Qg6+ {[%emt 0:00:19]} Ke7 {[%emt 0:00:24]} 40. Qg7+ {[%emt 0:00:06]} Ke8 {[%emt 0:00:42]} 41. Qg8+ {[%emt 0:30:14]} Ke7 {[%emt 0:30:06]} 42. Qg7+ {[%emt 0:01:00]} 1/2-1/2

[Event "Frauenbundesliga 2024-25"]
[Site "Germany"]
[Date "2025.02.16"]
[Round "6.2"]
[White "Roessler, Ulrike"]
[Black "Narva, Mai"]
[Result "0-1"]
[Annotator "ChessBase"]
[ECO "B43"]
[WhiteElo "2021"]
[BlackElo "2384"]
[PlyCount "108"]
[EventDate "2024.11.06"]
[EventType "team-tourn"]
[EventCountry "GER"]
[SourceTitle "playchess.com"]
[Source "ChessBase"]
[SourceQuality "1"]
[TimeControl "40/5400+30:1800+30"]

1. e4 {[%emt 0:00:02]} c5 {[%emt 0:00:08]} 2. Nf3 {[%emt 0:00:05]} e6 {[%emt 0:00:12]} 3. d4 {[%emt 0:00:04]} cxd4 {[%emt 0:00:08]} 4. Nxd4 {[%emt 0:00:04]} a6 {[%emt 0:00:15]} 5. Nc3 {[%emt 0:00:14]} b5 {[%emt 0:00:13]} 6. a3 {[%emt 0:02:07]} Bb7 {[%emt 0:00:17]} 7. Be3 {[%emt 0:02:42]} Qc7 {[%emt 0:02:26]} 8. Be2 {[%emt 0:02:16]} Nf6 {[%emt 0:01:41]} 9. Bf3 {[%emt 0:00:06]} Nc6 {[%emt 0:02:17]} 10. Nxc6 {[%emt 0:00:32]} Bxc6 {[%emt 0:00:07]} 11. Qd4 {[%emt 0:01:39]} Bd6 {[%emt 0:03:10]} 12. O-O-O {[%emt 0:03:37]} Be5 {[%emt 0:03:23]} 13. Qc5 {[%emt 0:05:22]} d6 {[%emt 0:04:21]} 14. Qb6 {[%emt 0:00:56]} Qxb6 {[%emt 0:02:31]} 15. Bxb6 {[%emt 0:00:05]} a5 {[%emt 0:00:18]} 16. Rhe1 {[%emt 0:06:46]} b4 {[%emt 0:09:57]} 17. Nb1 {[%emt 0:05:38]} g5 {[%emt 0:03:30]} 18. g3 {[%emt 0:10:38]} h5 {[%emt 0:11:35]} 19. Bd4 {[%emt 0:13:01]} g4 {[%emt 0:00:52]} 20. Bg2 {[%emt 0:00:26]} h4 {[%emt 0:02:28]} 21. Bxe5 {[%emt 0:09:17]} dxe5 {[%emt 0:00:08]} 22. Rd6 {[%emt 0:00:06]} Rc8 {[%emt 0:00:57]} 23. axb4 {[%emt 0:01:19]} axb4 {[%emt 0:02:04]} 24. Nd2 {[%emt 0:01:59]} hxg3 {[%emt 0:04:44]} 25. hxg3 {[%emt 0:00:24]} Rh2 {[%emt 0:00:36]} 26. Rg1 {[%emt 0:01:01]} Nd7 {[%emt 0:00:27]} 27. f4 {[%emt 0:17:06]} gxf3 {[%emt 0:00:58]} 28. Nxf3 {[%emt 0:00:05]} Rh8 {[%emt 0:00:33]} 29. Rd2 {[%emt 0:13:55]} Ke7 {[%emt 0:02:19]} 30. Rf2 {[%emt 0:01:05]} Rcg8 {[%emt 0:03:20]} 31. Bf1 {[%emt 0:02:25]} Bxe4 {[%emt 0:00:59]} 32. Bb5 {[%emt 0:00:13]} Bxf3 {[%emt 0:02:15]} 33. Rxf3 {[%emt 0:00:02]} Nc5 {[%emt 0:00:24]} 34. Re3 {[%emt 0:00:55]} f6 {[%emt 0:01:13]} 35. g4 {[%emt 0:00:57]} Ra8 {[%emt 0:01:43]} 36. Kb1 {[%emt 0:00:19]} Ra5 {[%emt 0:00:58]} 37. Bc6 {[%emt 0:00:05]} Rc8 {[%emt 0:00:27]} 38. Bg2 {[%emt 0:00:51]} Rc7 {[%emt 0:00:51]} 39. Rh1 {[%emt 0:00:06]} Rca7 {[%emt 0:01:51]} 40. Rh7+ {[%emt 0:00:55]} Kd6 {[%emt 0:00:07]} 41. Rxa7 {[%emt 0:30:25]} Rxa7 {[%emt 0:30:04]} 42. Rh3 {[%emt 0:00:00]} Rg7 {[%emt 0:00:00]} 43. Bf3 {[%emt 0:00:00]} e4 {[%emt 0:00:00]} 44. Be2 {[%emt 0:00:00]} f5 {[%emt 0:00:00]} 45. gxf5 {[%emt 0:00:00]} Rg1+ {[%emt 0:00:00]} 46. Ka2 {[%emt 0:00:00]} exf5 {[%emt 0:00:00]} 47. c3 {[%emt 0:00:00]} bxc3 {[%emt 0:00:00]} 48. Rxc3 {[%emt 0:00:00]} Rg2 {[%emt 0:00:00]} 49. Bb5 {[%emt 0:00:00]} f4 {[%emt 0:00:00]} 50. Kb1 {[%emt 0:00:00]} e3 {[%emt 0:00:00]} 51. b4 {[%emt 0:00:00]} Ne4 {[%emt 0:00:00]} 52. Rc8 {[%emt 0:00:00]} f3 {[%emt 0:00:00]} 53. Rd8+ {[%emt 0:00:00]} Kc7 {[%emt 0:00:00]} 54. Rf8 {[%emt 0:00:00]} e2 {[%emt 0:00:00]} 0-1

[Event "Frauenbundesliga 2024-25"]
[Site "Germany"]
[Date "2025.02.16"]
[Round "6.3"]
[White "Zatonskih, Anna"]
[Black "Peglau, Dora"]
[Result "1-0"]
[Annotator "ChessBase"]
[ECO "E51"]
[WhiteElo "2302"]
[BlackElo "2134"]
[PlyCount "97"]
[EventDate "2024.11.06"]
[EventType "team-tourn"]
[EventCountry "GER"]
[SourceTitle "playchess.com"]
[Source "ChessBase"]
[SourceQuality "1"]
[TimeControl "40/5400+30:1800+30"]

1. d4 {[%emt 0:00:02]} Nf6 {[%emt 0:00:05]} 2. c4 {[%emt 0:00:06]} e6 {[%emt 0:00:05]} 3. Nc3 {[%emt 0:00:45]} Bb4 {[%emt 0:00:26]} 4. Bd2 {[%emt 0:05:38]} d5 {[%emt 0:02:48]} 5. e3 {[%emt 0:00:22]} O-O {[%emt 0:00:33]} 6. Nf3 {[%emt 0:01:12]} a6 {[%emt 0:03:14]} 7. a3 {[%emt 0:06:56]} Be7 {[%emt 0:02:01]} 8. b4 {[%emt 0:21:10]} b6 {[%emt 0:16:35]} 9. c5 {[%emt 0:12:01]} a5 {[%emt 0:02:27]} 10. Bd3 {[%emt 0:05:00]} bxc5 {[%emt 0:03:24]} 11. bxc5 {[%emt 0:00:45]} Ba6 {[%emt 0:00:14]} 12. Bxa6 {[%emt 0:00:12]} Rxa6 {[%emt 0:00:47]} 13. O-O {[%emt 0:00:07]} Nbd7 {[%emt 0:09:05]} 14. Qe2 {[%emt 0:03:37]} Ra7 {[%emt 0:02:06]} 15. Rab1 {[%emt 0:09:57]} c6 {[%emt 0:02:47]} 16. e4 {[%emt 0:00:34]} dxe4 {[%emt 0:02:31]} 17. Nxe4 {[%emt 0:00:02]} Qc7 {[%emt 0:01:13]} 18. Nxf6+ {[%emt 0:02:24]} Nxf6 {[%emt 0:01:45]} 19. Ne5 {[%emt 0:00:49]} Nd5 {[%emt 0:05:28]} 20. Qe4 {[%emt 0:03:00]} a4 {[%emt 0:07:48]} 21. Rb2 {[%emt 0:02:09]} Rb7 {[%emt 0:03:57]} 22. Ba5 {[%emt 0:08:01]} Qc8 {[%emt 0:00:17]} 23. Bb6 {[%emt 0:00:27]} Bd8 {[%emt 0:15:27]} 24. Nc4 {[%emt 0:00:48]} Qa8 {[%emt 0:00:33]} 25. Qc2 {[%emt 0:01:45]} Bf6 {[%emt 0:04:41]} 26. Rd1 {[%emt 0:02:38]} h6 {[%emt 0:01:46]} 27. Ne3 {[%emt 0:04:54]} Rd7 {[%emt 0:07:22]} 28. Nxd5 {[%emt 0:00:28]} Rxd5 {[%emt 0:00:04]} 29. Rb4 {[%emt 0:00:03]} Qb8 {[%emt 0:03:19]} 30. g3 {[%emt 0:02:33]} e5 {[%emt 0:00:49]} 31. Qxa4 {[%emt 0:00:32]} Rxd4 {[%emt 0:01:31]} 32. Rbxd4 {[%emt 0:00:32]} exd4 {[%emt 0:00:01]} 33. Qxc6 {[%emt 0:00:10]} Qe5 {[%emt 0:00:36]} 34. Kg2 {[%emt 0:01:28]} Qe2 {[%emt 0:01:05]} 35. Qf3 {[%emt 0:00:16]} Qb5 {[%emt 0:00:01]} 36. Re1 {[%emt 0:03:38]} Rc8 {[%emt 0:00:50]} 37. h4 {[%emt 0:01:00]} Qb2 {[%emt 0:00:46]} 38. Qd3 {[%emt 0:01:12]} Ra8 {[%emt 0:00:22]} 39. a4 {[%emt 0:00:55]} g6 {[%emt 0:00:37]} 40. a5 {[%emt 0:00:10]} Kg7 {[%emt 0:00:32]} 41. c6 {[%emt 0:31:56]} Qb4 {[%emt 0:03:21]} 42. Rc1 {[%emt 0:00:00]} Qd6 {[%emt 0:03:41]} 43. c7 {[%emt 0:00:00]} Rc8 {[%emt 0:00:24]} 44. Qe4 {[%emt 0:00:00]} d3 {[%emt 0:02:40]} 45. Rd1 {[%emt 0:00:00]} d2 {[%emt 0:00:42]} 46. Qc2 {[%emt 0:00:00]} Qd5+ {[%emt 0:01:28]} 47. Kg1 {[%emt 0:00:00]} Qf3 {[%emt 0:00:42]} 48. Qxd2 {[%emt 0:00:00]} Bxh4 {[%emt 0:00:20]} 49. Qd3 {[%emt 0:00:00]} 1-0

[Event "Frauenbundesliga 2024-25"]
[Site "Germany"]
[Date "2025.02.16"]
[Round "6.3"]
[White "Koepke, Elena"]
[Black "Sieber, Fiona"]
[Result "1/2-1/2"]
[Annotator "ChessBase"]
[ECO "C47"]
[WhiteElo "2224"]
[BlackElo "2274"]
[PlyCount "118"]
[EventDate "2024.11.06"]
[EventType "team-tourn"]
[EventCountry "GER"]
[SourceTitle "playchess.com"]
[Source "ChessBase"]
[SourceQuality "1"]
[TimeControl "40/5400+30:1800+30"]

1. e4 {[%emt 0:00:03]} e5 {[%emt 0:00:04]} 2. Nf3 {[%emt 0:00:06]} Nc6 {[%emt 0:00:06]} 3. Nc3 {[%emt 0:00:08]} Nf6 {[%emt 0:00:12]} 4. d4 {[%emt 0:00:06]} exd4 {[%emt 0:00:08]} 5. Nxd4 {[%emt 0:00:03]} Bb4 {[%emt 0:00:26]} 6. Nxc6 {[%emt 0:00:06]} bxc6 {[%emt 0:00:06]} 7. Bd3 {[%emt 0:00:04]} d5 {[%emt 0:01:21]} 8. Bd2 {[%emt 0:00:42]} O-O {[%emt 0:00:58]} 9. O-O {[%emt 0:00:04]} Rb8 {[%emt 0:02:24]} 10. Re1 {[%emt 0:01:08]} Re8 {[%emt 0:00:49]} 11. a3 {[%emt 0:35:30]} Be7 {[%emt 0:10:17]} 12. b4 {[%emt 0:09:07]} Bg4 {[%emt 0:07:29]} 13. Qc1 {[%emt 0:05:02]} Qc8 {[%emt 0:06:33]} 14. e5 {[%emt 0:12:43]} Nd7 {[%emt 0:02:19]} 15. h3 {[%emt 0:00:22]} Be6 {[%emt 0:01:05]} 16. f4 {[%emt 0:02:10]} Nb6 {[%emt 0:03:47]} 17. Rf1 {[%emt 0:08:03]} Bf5 {[%emt 0:01:29]} 18. Be3 {[%emt 0:04:35]} a5 {[%emt 0:11:21]} 19. bxa5 {[%emt 0:00:33]} Bxd3 {[%emt 0:02:09]} 20. cxd3 {[%emt 0:00:15]} Nd7 {[%emt 0:00:06]} 21. Ne2 {[%emt 0:06:55]} Qa6 {[%emt 0:03:28]} 22. Qc3 {[%emt 0:01:38]} Rb5 {[%emt 0:08:01]} 23. Rfb1 {[%emt 0:00:54]} Rxa5 {[%emt 0:04:31]} 24. Rb3 {[%emt 0:01:52]} Ra4 {[%emt 0:04:59]} 25. Qb2 {[%emt 0:03:09]} Ra8 {[%emt 0:05:55]} 26. Bc1 {[%emt 0:03:36]} Bf8 {[%emt 0:07:04]} 27. Qc2 {[%emt 0:02:55]} Qa7+ {[%emt 0:02:33]} 28. Kh2 {[%emt 0:01:00]} Qf2 {[%emt 0:01:46]} 29. d4 {[%emt 0:00:59]} Rc4 {[%emt 0:02:13]} 30. Qd1 {[%emt 0:00:20]} Qh4 {[%emt 0:01:46]} 31. Rf3 {[%emt 0:00:37]} Qd8 {[%emt 0:03:11]} 32. a4 {[%emt 0:00:51]} c5 {[%emt 0:01:21]} 33. a5 {[%emt 0:00:30]} Ra6 {[%emt 0:01:19]} 34. Rb3 {[%emt 0:00:39]} cxd4 {[%emt 0:01:25]} 35. Nxd4 {[%emt 0:00:23]} Nc5 {[%emt 0:00:33]} 36. Rbb1 {[%emt 0:00:36]} Ne4 {[%emt 0:00:40]} 37. Qd3 {[%emt 0:00:13]} c5 {[%emt 0:01:26]} 38. Ne2 {[%emt 0:00:26]} Qa8 {[%emt 0:01:57]} 39. Rb5 {[%emt 0:00:37]} g6 {[%emt 0:01:18]} 40. Rab1 {[%emt 0:00:21]} Qc6 {[%emt 0:00:43]} 41. Rb8 {[%emt 0:12:34]} Rb4 {[%emt 0:09:42]} 42. R1xb4 {[%emt 0:15:33]} cxb4 {[%emt 0:00:02]} 43. f5 {[%emt 0:02:05]} Ra8 {[%emt 0:08:36]} 44. Qb5 {[%emt 0:01:37]} Qxb5 {[%emt 0:00:14]} 45. Rxb5 {[%emt 0:00:04]} gxf5 {[%emt 0:01:46]} 46. Rxd5 {[%emt 0:00:36]} Nc3 {[%emt 0:02:09]} 47. Nxc3 {[%emt 0:00:04]} bxc3 {[%emt 0:00:03]} 48. Rb5 {[%emt 0:00:58]} Kg7 {[%emt 0:03:38]} 49. Kg3 {[%emt 0:00:50]} Be7 {[%emt 0:01:53]} 50. Kf4 {[%emt 0:00:55]} Bd8 {[%emt 0:02:03]} 51. Kxf5 {[%emt 0:00:29]} Rxa5 {[%emt 0:00:41]} 52. Rxa5 {[%emt 0:00:16]} Bxa5 {[%emt 0:00:02]} 53. g4 {[%emt 0:00:56]} Bb6 {[%emt 0:02:29]} 54. Ke4 {[%emt 0:00:12]} Bf2 {[%emt 0:01:02]} 55. Bf4 {[%emt 0:00:45]} Kg6 {[%emt 0:00:56]} 56. Kd3 {[%emt 0:00:17]} Be1 {[%emt 0:00:38]} 57. Ke2 {[%emt 0:00:54]} Bh4 {[%emt 0:02:05]} 58. Kd3 {[%emt 0:00:15]} Be1 {[%emt 0:00:06]} 59. Ke2 {[%emt 0:00:07]} Bh4 {[%emt 0:00:03]} 1/2-1/2

[Event "Frauenbundesliga 2024-25"]
[Site "Germany"]
[Date "2025.02.16"]
[Round "6.4"]
[White "Movsesian, Julia"]
[Black "Dwilewicz, Katarzyna"]
[Result "1/2-1/2"]
[Annotator "ChessBase"]
[ECO "B47"]
[WhiteElo "2216"]
[BlackElo "2190"]
[PlyCount "75"]
[EventDate "2024.11.06"]
[EventType "team-tourn"]
[EventCountry "GER"]
[SourceTitle "playchess.com"]
[Source "ChessBase"]
[SourceQuality "1"]
[TimeControl "40/5400+30:1800+30"]

1. e4 {[%emt 0:00:02]} c5 {[%emt 0:00:10]} 2. Nf3 {[%emt 0:00:08]} e6 {[%emt 0:00:05]} 3. d4 {[%emt 0:00:04]} cxd4 {[%emt 0:00:04]} 4. Nxd4 {[%emt 0:00:03]} Nc6 {[%emt 0:00:06]} 5. Nc3 {[%emt 0:00:07]} Qc7 {[%emt 0:00:06]} 6. g3 {[%emt 0:00:09]} a6 {[%emt 0:00:05]} 7. Bg2 {[%emt 0:00:05]} h5 {[%emt 0:00:24]} 8. O-O {[%emt 0:07:58]} h4 {[%emt 0:08:20]} 9. Re1 {[%emt 0:00:33]} d6 {[%emt 0:07:32]} 10. a4 {[%emt 0:12:11]} Bd7 {[%emt 0:03:47]} 11. Bg5 {[%emt 0:07:11]} hxg3 {[%emt 0:05:05]} 12. hxg3 {[%emt 0:00:18]} Nf6 {[%emt 0:04:04]} 13. Nxc6 {[%emt 0:25:05]} bxc6 {[%emt 0:04:14]} 14. Qf3 {[%emt 0:01:38]} Be7 {[%emt 0:00:18]} 15. Rad1 {[%emt 0:00:38]} e5 {[%emt 0:04:13]} 16. Qd3 {[%emt 0:01:35]} a5 {[%emt 0:03:53]} 17. Nb1 {[%emt 0:13:40]} Rh5 {[%emt 0:06:24]} 18. Bxf6 {[%emt 0:00:28]} gxf6 {[%emt 0:00:33]} 19. Nd2 {[%emt 0:00:03]} f5 {[%emt 0:18:55]} 20. Nc4 {[%emt 0:07:58]} fxe4 {[%emt 0:08:44]} 21. Nxd6+ {[%emt 0:00:13]} Bxd6 {[%emt 0:00:06]} 22. Qxd6 {[%emt 0:00:02]} Qxd6 {[%emt 0:00:10]} 23. Rxd6 {[%emt 0:00:04]} f5 {[%emt 0:01:53]} 24. Red1 {[%emt 0:04:26]} Rh7 {[%emt 0:03:39]} 25. Bh3 {[%emt 0:05:22]} Ra7 {[%emt 0:07:50]} 26. Kg2 {[%emt 0:01:05]} Rg7 {[%emt 0:08:27]} 27. Rh6 {[%emt 0:06:29]} f4 {[%emt 0:01:44]} 28. Re1 {[%emt 0:05:17]} e3 {[%emt 0:00:49]} 29. Bxd7+ {[%emt 0:01:09]} Raxd7 {[%emt 0:00:31]} 30. Re6+ {[%emt 0:00:29]} Rde7 {[%emt 0:01:18]} 31. Rxe7+ {[%emt 0:00:12]} Kxe7 {[%emt 0:00:07]} 32. fxe3 {[%emt 0:00:28]} Rxg3+ {[%emt 0:01:40]} 33. Kf2 {[%emt 0:00:00]} Kd6 {[%emt 0:01:06]} 34. exf4 {[%emt 0:00:13]} exf4 {[%emt 0:00:05]} 35. Rh1 {[%emt 0:00:09]} Rg5 {[%emt 0:00:51]} 36. Rh6+ {[%emt 0:00:20]} Kc5 {[%emt 0:00:12]} 37. Rf6 {[%emt 0:00:41]} Rd5 {[%emt 0:00:34]} 38. Ke2 {[%emt 0:00:50]} 1/2-1/2